{"text_format":"1","workbook":"xlsx","n_sheets":1,"sheets":["Three-Point Cost Estimating"],"not_rendered":{"charts":0,"images":2,"macros":0,"external_links":0,"defined_names":1,"comments":0,"pivot_tables":0},"unopened":[],"bounds":{"document_bytes":16777216,"sheet_cells":100000,"rows_first":2000,"rows_last":500,"rows_between":2000,"halvings":0,"cell_chars":16384,"cell_head_chars":4096},"cells_cut":0,"cells_raw":0,"read":"whole","date_system":"1900"}

{"sheet":"Three-Point Cost Estimating","index":0,"n_rows":38,"n_cols":9,"rows_kept":38,"cut":false,"hidden":false,"merged":[[4,8,5,8],[4,1,4,3],[2,1,2,3],[37,2,37,7],[2,5,2,6],[4,4,4,6],[4,7,5,7]]}
[null,"THREE-POINT COST ESTIMATING TEMPLATE"]
[]
[null,"Project Title; Project Manager",null,null,null,"RUNNING WEIGHTED AVERAGE TOTAL:",null,{"$f":"SUM(H7:H36)","v":2101.666666666667}]
[]
[null,"DETAILS",null,null,"THREE-POINT COST ESTIMATE SCENARIOS",null,null,"WEIGHTED AVERAGE","ADDITIONAL INFORMATION / NOTES"]
[null,"DATE","ITEM / TASK DESCRIPTION","GATHERED BY","BEST-CASE","MOST LIKELY / REALISTIC","WORST-CASE"]
[null,"2019-01-01","Product Name and Description","First Name Last Name",500,600,700,{"$f":"(E7+(4*F7)+G7)/6","v":600},"Vendor, Rep, etc."]
[null,"2019-01-02","Task Title and Description","First Name Last Name",400,500,800,{"$f":"(E8+(4*F8)+G8)/6","v":533.33333333333337},"Hours, Rate, etc."]
[null,"2019-01-03","Service Name and Description","First Name Last Name",300,400,680,{"$f":"(E9+(4*F9)+G9)/6","v":430},"Hours, Rate, etc."]
[null,"2019-01-04","Item Name and Description","First Name Last Name",200,300,450,308.33333333333331,"Additional Item Details, etc."]
[null,"2019-01-05","Product Name and Description","First Name Last Name",100,200,480,230,"Vendor, Rep, etc."]
[null,null,null,null,0,0,0,0]
[null,null,null,null,0,0,0,0]
[null,null,null,null,0,0,0,0]
[null,null,null,null,0,0,0,0]
[null,null,null,null,0,0,0,0]
[null,null,null,null,0,0,0,0]
[null,null,null,null,0,0,0,0]
[null,null,null,null,0,0,0,0]
[null,null,null,null,0,0,0,0]
[null,null,null,null,0,0,0,0]
[null,null,null,null,0,0,0,0]
[null,null,null,null,0,0,0,0]
[null,null,null,null,0,0,0,0]
[null,null,null,null,0,0,0,0]
[null,null,null,null,0,0,0,0]
[null,null,null,null,0,0,0,0]
[null,null,null,null,0,0,0,0]
[null,null,null,null,0,0,0,0]
[null,null,null,null,0,0,0,0]
[null,null,null,null,0,0,0,0]
[null,null,null,null,0,0,0,0]
[null,null,null,null,0,0,0,0]
[null,null,null,null,0,0,0,0]
[null,null,null,null,0,0,0,0]
[null,null,null,null,0,0,0,0]
[]
[null,null,"CLICK HERE TO CREATE BUDGET TEMPLATES IN SMARTSHEET"]